fUSD/lending_fUSD_20240415
["ID","MTS","AMOUNT","RATE_DAILY","PERIOD"]
[322659539,1713192650122,-5000.0,0.00020013,2]
[322659540,1713192650132,-5000.0,0.00020013,2]
[322659541,1713192650143,-5000.0,0.00020013,2]
[322659542,1713192650153,-210.202,0.00020022,2]
[322659543,1713192650163,-5000.0,0.00020025,2]
[322659544,1713192650174,-5000.0,0.00020025,2]
[322659545,1713192650184,-5000.0,0.00020025,2]
[322659546,1713192650195,-5000.0,0.00020038,2]
[322659547,1713192650206,-5000.0,0.00020038,2]
[322659548,1713192650217,-5000.0,0.00020038,2]
[322659549,1713192650227,-5000.0,0.0002005,2]
[322659550,1713192650237,-1979.75,0.0002005,2]
[322659551,1713192650248,-5000.0,0.00020063,2]
[322659552,1713192650258,-1475.41314868,0.00020083,2]
[322659553,1713192650268,-210.202,0.00020114,2]
[322659554,1713192650279,-210.202,0.00020207,2]
[322659555,1713192650289,-503.0,0.00020246,2]
[322659556,1713192650299,-1000.0,0.00020272,5]
[322659557,1713192650310,-1000.0,0.00020272,5]
[322659558,1713192650320,-541.0,0.00020274,2]
[322659559,1713192650330,-210.202,0.00020301,2]
[322659560,1713192650341,-2500.0,0.0002037,2]
[322659561,1713192650351,-2500.0,0.0002037,2]
[322659562,1713192650365,-1475.41314868,0.00020379,2]
[322659563,1713192650375,-210.202,0.00020395,2]
[322659564,1713192650386,-3370.04854599,0.00020402,2]
[322659565,1713192650396,-200.32,0.00020478,2]
[322659566,1713192650406,-210.202,0.00020491,2]
[322659567,1713192650417,-12589.45723495,0.000205,2]
[322659568,1713192650753,-150.0,0.000205,2]
[322659569,1713192650764,-173.54,0.00020548,2]
[322659570,1713192650775,-1260.83193998,0.00020548,2]
[322659571,1713192650816,-51.10806002,0.00020548,2]
[322659572,1713192650827,-230.4262186,0.000207,2]
[322659573,1713192650839,-230.4262186,0.000207,2]
[322659574,1713192650850,-230.4262186,0.000207,2]
[322659575,1713192650865,-230.4262186,0.000207,2]
[322659576,1713192650876,-230.4262186,0.000207,2]
[322659577,1713192650886,-230.4262186,0.000207,2]
[322659578,1713192650897,-230.4262186,0.000207,2]
[322659579,1713192650908,-230.4262186,0.000207,2]
[322659580,1713192650919,-230.4262186,0.000207,2]
[322659581,1713192650930,-230.4262186,0.000207,2]
[322659582,1713192650940,-230.4262186,0.000207,2]
[322659583,1713192650951,-230.4262186,0.000207,2]
[322659584,1713192650962,-230.4262186,0.000207,2]
[322659585,1713192650971,-230.4262186,0.000207,2]
[322659586,1713192650982,-230.4262186,0.000207,2]
[322659587,1713192650992,-230.4262186,0.000207,2]
[322659588,1713192651003,-230.4262186,0.000207,2]
[322659589,1713192651013,-230.4262186,0.000207,2]
[322659590,1713192651023,-230.4262186,0.000207,2]
[322659591,1713192651033,-230.4262186,0.000207,2]
[322659592,1713192651043,-230.4262186,0.000207,2]
[322659593,1713192651053,-230.4262186,0.000207,2]
[322659594,1713192651063,-230.4262186,0.000207,2]
[322659595,1713192651073,-230.4262186,0.000207,2]
[322659596,1713192651082,-230.4262186,0.000207,2]
[322659597,1713192651092,-230.4262186,0.000207,2]
[322659598,1713192651103,-230.4262186,0.000207,2]
[322659599,1713192651116,-230.4262186,0.000207,2]
[322659600,1713192651126,-230.4262186,0.000207,2]
[322659601,1713192651136,-230.4262186,0.000207,2]
[322659602,1713192651144,-230.4262186,0.000207,2]
[322659603,1713192651154,-230.4262186,0.000207,2]
[322659604,1713192651163,-230.4262186,0.000207,2]
[322659605,1713192651173,-230.4262186,0.000207,2]
[322659606,1713192651182,-230.4262186,0.000207,2]
[322659607,1713192651192,-230.4262186,0.000207,2]
[322659608,1713192651202,-230.4262186,0.000207,2]
[322659609,1713192651211,-230.4262186,0.000207,2]
[322659610,1713192651221,-230.4262186,0.000207,2]
[322659611,1713192651231,-230.4262186,0.000207,2]
[322659612,1713192651240,-230.4262186,0.000207,2]
[322659613,1713192651251,-230.4262186,0.000207,2]
[322659614,1713192651260,-230.4262186,0.000207,2]
[322659615,1713192651270,-230.4262186,0.000207,2]
[322659616,1713192651279,-230.4262186,0.000207,2]
[322659617,1713192651289,-230.4262186,0.000207,2]
[322659618,1713192651299,-230.4262186,0.000207,2]
[322659619,1713192651308,-230.4262186,0.000207,2]
[322659620,1713192651318,-230.4262186,0.000207,2]
[322659621,1713192651328,-230.4262186,0.000207,2]
[322659622,1713192651338,-1475.41314868,0.00020702,2]
[322659623,1713192651347,-1000.0,0.00020738,2]
[322659624,1713192651357,-800.0,0.00020767,2]
[322659625,1713192651370,-150.0,0.00020788,2]
[322659626,1713192651380,-16502.1678613,0.0002079,2]
[322659627,1713192651392,-7264.608,0.0002079,2]
[322659628,1713192651406,-380.95400005,0.0002079,2]
[322659629,1713192651427,-411.87074189,0.0002079,2]
[322659630,1713192651439,-258.96144057,0.0002079,2]
[322659631,1713192651696,-2397.51560316,0.0002079,2]
[322659632,1713192651708,-859.11306131,0.0002079,2]
[322659633,1713192651770,-3895.5,0.0002079,2]
[322659634,1713192651782,-17585.88628581,0.0002079,2]
[322659635,1713192651935,-13004.0,0.0002079,2]
[322659636,1713192651946,-13926.98347568,0.0002079,2]
[322659637,1713192651993,-32300.0,0.0002079,2]
[322659638,1713192652028,-663.52414439,0.0002079,2]
[322659639,1713192652040,-371.0,0.0002079,2]
[322659640,1713192714827,16601.0565,0.0001591,2]
[322659641,1713192716975,209.04,0.00026819,120]
[322659646,1713192885287,14544.74226405,0.00025,30]
[322659665,1713192915844,342.94151451,0.00016,2]
[322659666,1713192926884,1867.2363406,0.00016,2]
[322659667,1713192930788,296.33767696,0.00016,2]
[322659668,1713192964015,4781.053,0.00015901,2]
[322659670,1713193025682,155.0,0.00016,2]
[322659672,1713193066066,741.43654387,0.00016,2]
[322659675,1713193215200,207.52,0.00025855,120]
[322659676,1713193217748,2177.19801245,0.00016,2]
[322659677,1713193217996,523.40353013,0.00016,2]
[322659678,1713193219486,264.01498696,0.00016,2]
[322659680,1713193356566,877.59,0.00015145,2]
[322659683,1713193426501,407.97409068,0.00016,2]
[322659684,1713193444987,330.40117961,0.00015145,2]
[322659685,1713193456766,523.40353013,0.00016,2]
[322659686,1713193478241,2000.0,0.00034444,31]
[322659687,1713193483705,741.78691365,0.00016,2]
[322659688,1713193499638,2040.39,0.00034444,31]
[322659689,1713193555334,161.71703186,0.00015903,2]
[322659690,1713193559333,161.71703185,0.00015918,2]
[322659697,1713193805256,200.0,0.00034444,100]
[322659715,1713193832212,-150.0,0.00016001,2]
[322659717,1713193832222,-150.0,0.00016001,2]
[322659718,1713193832232,-4578.27056581,0.00016003,2]
[322659719,1713193832241,-3490.42927967,0.00016004,2]
[322659720,1713193832254,-3216.3,0.00016004,2]
[322659721,1713193832373,-259.80296993,0.00016004,2]
[322659722,1713193832382,-200.19703507,0.00016008,2]
[322659723,1713193832395,-26.77533764,0.00016008,2]
[322659724,1713193832405,-522.40919793,0.00016014,2]
[322659725,1713193832414,-169.61877142,0.00016014,2]
[322659726,1713193832425,-155.14315609,0.00016014,2]
[322659727,1713193832435,-155.0,0.00016014,2]
[322659728,1713193832445,-538.48574102,0.00016014,2]
[322659729,1713193832454,-363.1109959,0.00016014,2]
[322659730,1713193832484,-1027.4790041,0.00016014,2]
[322659731,1713193832493,-155.0,0.00016014,2]
[322659732,1713193832502,-1000.0,0.00016015,2]
[322659733,1713193832511,-1000.0,0.00016015,2]
[322659734,1713193832520,-1000.0,0.00016015,2]
[322659735,1713193832530,-407.4048314,0.00016015,2]
[322659736,1713193832539,-14483.46082068,0.00016016,2]
[322659737,1713193832551,-1479.4257306,0.00016016,2]
[322659738,1713193832562,-276.53648125,0.00016016,2]
[322659740,1713193832573,-1280.279,0.00016016,2]
[322659742,1713193832602,-64523.90220004,0.00016016,2]
[322659743,1713193832613,-7080.63037265,0.00016016,2]
[322659744,1713193832625,-456499.60254782,0.00016016,2]
[322659745,1713193832634,-84553.03936157,0.00016017,2]
[322659746,1713193832643,-1279.32448358,0.000162,2]
[322659747,1713193832653,-299.99,0.000162,4]
[322659748,1713193832662,-1047.9,0.000162,2]
[322659749,1713193832671,-150.99,0.000162,2]
[322659750,1713193832680,-1160.56,0.000162,2]
[322659751,1713193832689,-990.71,0.000162,2]
[322659752,1713193832699,-150.99,0.000162,2]
[322659753,1713193832709,-86192.0,0.000162,2]
[322659754,1713193832718,-9999.99,0.000162,2]
[322659755,1713193832728,-500.0,0.00016317,2]
[322659756,1713193832737,-181.76,0.00016317,2]
[322659757,1713193832747,-2089.95,0.00016338,2]
[322659758,1713193832756,-23900.0,0.00016441,2]
[322659759,1713193832765,-250.0,0.00016487,2]
[322659760,1713193832775,-1222.73838608,0.000165,2]
[322659761,1713193832784,-253.59,0.00016514,2]
[322659762,1713193832793,-1288.21,0.00016514,2]
[322659763,1713193832803,-200.0,0.00016544,2]
[322659764,1713193832812,-150.0,0.000166,2]
[322659765,1713193832822,-200.0,0.00016602,2]
[322659766,1713193832831,-161.74,0.00016605,2]
[322659767,1713193832843,-3152.34,0.00016668,2]
[322659768,1713193832852,-588.83,0.00016712,2]
[322659769,1713193832862,-200.0,0.00017109,2]
[322659770,1713193832871,-294.14,0.00017187,2]
[322659771,1713193832880,-294.14,0.00017234,2]
[322659772,1713193832889,-207.52,0.00017237,2]
[322659773,1713193832899,-294.14,0.00017281,2]
[322659774,1713193832908,-294.14,0.00017328,2]
[322659775,1713193832917,-294.14,0.00017375,2]
[322659776,1713193832927,-877.59,0.00017409,2]
[322659777,1713193832936,-294.14,0.00017422,2]
[322659778,1713193832946,-294.14,0.00017469,2]
[322659779,1713193832955,-294.14,0.00017516,2]
[322659780,1713193832965,-294.14,0.00017564,2]
[322659781,1713193832974,-210.0,0.00017601,2]
[322659782,1713193832984,-499.99,0.00017603,2]
[322659783,1713193832993,-294.14,0.00017611,2]
[322659784,1713193833002,-150.99,0.00017633,2]
[322659785,1713193833011,-294.14,0.00017658,2]
[322659786,1713193833021,-778.65118365,0.00017662,2]
[322659787,1713193833031,-346.88003653,0.00017662,2]
[322659788,1713193833041,-224.99,0.00017664,2]
[322659789,1713193833050,-294.14,0.00017705,2]
[322659790,1713193833059,-294.14,0.00017752,2]
[322659791,1713193833069,-294.14,0.00017799,2]
[322659792,1713193833079,-294.14,0.00017846,2]
[322659793,1713193833090,-1424.88577514,0.00017878,2]
[322659794,1713193833100,-178.95293448,0.0001788,2]
[322659795,1713193833110,-178.95293445,0.0001788,2]
[322659796,1713193833119,-294.14,0.00017893,2]
[322659797,1713193833129,-294.14,0.00017941,2]
[322659798,1713193833138,-294.14,0.00017988,2]
[322659799,1713193833148,-161.74,0.00017989,2]
[322659800,1713193833158,-155.0,0.00018,2]
[322659801,1713193833169,-64717.33777455,0.00018,2]
[322659802,1713193833179,-294.14,0.00018035,2]
[322659803,1713193833191,-294.14,0.00018082,2]
[322659804,1713193833201,-1652.41316479,0.000181,2]
[322659805,1713193833210,-800.0,0.00018349,2]
[322659806,1713193833219,-1000.0,0.00018622,5]
[322659807,1713193833230,-1000.0,0.00018622,5]
[322659808,1713193833239,-1000.0,0.00018623,5]
[322659809,1713193833248,-798.43420396,0.00018623,5]
[322659810,1713193833258,-166.93,0.0001893,2]
[322659811,1713193833267,-300.0,0.00018981,2]
[322659812,1713193833277,-159.10805262,0.00018999,2]
[322659813,1713193833286,-286.45403746,0.00018999,2]
[322659814,1713193833296,-298.99850738,0.00019,2]
[322659815,1713193833305,-1550.0,0.00019,3]
[322659816,1713193833315,-233.63758702,0.00019,2]
[322659817,1713193833324,-2089.95,0.00019077,2]
[322659818,1713193833334,-231.94018651,0.00019096,2]
[322659819,1713193833349,-295.47476867,0.00019096,2]
[322659820,1713193833359,-245.01040443,0.00019096,2]
[322659821,1713193833368,-342.45381594,0.00019097,2]
[322659822,1713193833378,-116006.64131794,0.00019099,2]
[322659823,1713193833387,-168.36,0.00019152,2]
[322659824,1713193833397,-312.64686832,0.00019177,2]
[322659825,1713193833406,-1805.61590668,0.00019177,2]
[322659826,1713193833415,-404.73102028,0.00019177,2]
[322659827,1713193833424,-5528.37072366,0.00019177,2]
[322659828,1713193833434,-621.31864924,0.00019177,2]
[322659829,1713193833444,-503.0,0.00019178,2]
[322659830,1713193833452,-200.0,0.00019178,2]
[322659831,1713193833462,-548.99,0.00019178,2]
[322659832,1713193833471,-1500.0,0.00019178,2]
[322659833,1713193833480,-2000.0,0.00019178,2]
[322659834,1713193833489,-3868.29298528,0.000192,2]
[322659835,1713193833499,-178.95293445,0.0001923,2]
[322659836,1713193833508,-582.0,0.00019233,2]
[322659837,1713193833518,-200.0,0.00019248,2]
[322659838,1713193833529,-293.0,0.00019361,2]
[322659839,1713193833538,-161.74,0.00019373,2]
[322659840,1713193833549,-209.04,0.00019504,2]
[322659841,1713193833559,-1279.1557,0.00019508,2]
[322659842,1713193833568,-3370.04854599,0.00019581,2]
[322659843,1713193833578,-877.59,0.00019673,2]
[322659844,1713193833587,-167.46,0.00019715,2]
[322659845,1713193833603,-1000.0,0.00019726,2]
[322659846,1713193833613,-166.93,0.00019734,2]
[322659847,1713193833623,-1623.3623,0.00019803,2]
[322659848,1713193833633,-192.65977786,0.00019808,2]
[322659849,1713193833642,-3370.04854599,0.00019861,2]
[322659850,1713193833651,-8664.330196,0.00019892,2]
[322659851,1713193833660,-157.31206403,0.000199,2]
[322659852,1713193833670,-150.10483927,0.000199,2]
[322659853,1713193833680,-150.1048392,0.000199,2]
[322659854,1713193833690,-150.1048392,0.000199,2]
[322659855,1713193833699,-8739.57838743,0.00019904,2]
[322659856,1713193833708,-2838.41102406,0.00019904,2]
[322659857,1713193833717,-150.1048392,0.00019907,2]
[322659858,1713193833727,-150.1048392,0.00019941,2]
[322659859,1713193833737,-150.1048392,0.00019975,2]
[322659860,1713193833746,-155.0,0.0002,2]
[322659861,1713193833755,-3064.07513129,0.0002,2]
[322659862,1713193833764,-500.0,0.0002,2]
[322659863,1713193833773,-751.96645107,0.0002,2]
[322659864,1713193833783,-1764.94365251,0.0002,2]
[322659865,1713193833792,-859.05239127,0.0002,2]
[322659866,1713193833801,-57332.81098039,0.0002,2]
[322659867,1713193833811,-1046.55154272,0.0002,2]
[322659868,1713193833820,-641.0611939,0.0002,2]
[322659869,1713193833830,-2549.11410221,0.0002,2]
[322659870,1713193833844,-186.00550827,0.0002,2]
[322659871,1713193833853,-155.0,0.0002,2]
[322659872,1713193833863,-1256.02470065,0.0002,2]
[322659873,1713193833872,-6216.8220722,0.0002,2]
[322659874,1713193833881,-150.1048392,0.0002001,2]
[322659875,1713193833893,-155.0,0.00020022,2]
[322659876,1713193833902,-362.75793443,0.00020022,2]
[322659877,1713193833912,-376.34801074,0.00020022,2]
[322659878,1713193833921,-155.0,0.00020022,2]
[322659879,1713193833931,-2356.92753375,0.00020022,2]
[322659880,1713193833940,-210.32926479,0.00020022,2]
[322659881,1713193833949,-161.90548675,0.00020022,2]
[322659882,1713193833959,-206.50643448,0.00020022,2]
[322659883,1713193833968,-155.0,0.00020022,2]
[322659884,1713193833977,-2212.48519324,0.00020022,2]
[322659885,1713193833987,-708.94208122,0.00020022,2]
[322659886,1713193833996,-164.29423485,0.00020022,2]
[322659887,1713193834005,-10553.58850667,0.00020022,2]
[322659888,1713193834014,-174.12211115,0.00020023,2]
[322659889,1713193834024,-155.0,0.00020023,2]
[322659890,1713193834033,-161.29586727,0.00020023,2]
[322659891,1713193834042,-1242.81455954,0.00020023,2]
[322659892,1713193834051,-194.14929762,0.00020023,2]
[322659893,1713193834060,-4691.4866051,0.00020023,2]
[322659894,1713193834070,-155.0,0.00020023,2]
[322659895,1713193834079,-207.5347557,0.00020023,2]
[322659896,1713193834092,-419.22939929,0.00020023,2]
[322659897,1713193834103,-3378.54108249,0.00020023,2]
[322659898,1713193834113,-358.72677307,0.00020023,2]
[322659899,1713193834122,-705.57830306,0.00020023,2]
[322659900,1713193834133,-150.1048392,0.00020044,2]
[322659901,1713193834144,-26206.01581709,0.00020045,2]
[322659902,1713193834153,-150.1048392,0.00020078,2]
[322659903,1713193834164,-150.1048392,0.00020112,2]
[322659904,1713193834178,-26206.01581701,0.00020123,2]
[322659905,1713193834187,-500.0,0.00020129,2]
[322659906,1713193834197,-500.0,0.00020129,2]
[322659907,1713193834207,-500.0,0.00020129,2]
[322659908,1713193834216,-500.0,0.00020129,2]
[322659909,1713193834225,-252.92836265,0.00020129,2]
[322659910,1713193834235,-150.1048392,0.00020147,2]
[322659911,1713193834245,-1475.41314869,0.00020169,2]
[322659912,1713193834255,-3370.04854599,0.00020172,2]
[322659913,1713193834264,-150.1048392,0.00020181,2]
[322659914,1713193834273,-10227.55841897,0.000202,2]
[322659915,1713193834286,-258.95031607,0.000202,2]
[322659916,1713193834298,-389.84087267,0.000202,2]
[322659917,1713193834309,-5547.51676111,0.000202,2]
[322659918,1713193834444,-277.61045312,0.000202,2]
[322659919,1713193834481,-6055.9025272,0.000202,2]
[322659920,1713193834500,-3448.63646787,0.000202,2]
[322659921,1713193834509,-150.1048392,0.00020215,2]
[322659922,1713193834519,-173.32986147,0.00020235,2]
[322659923,1713193834528,-150.1048392,0.00020249,2]
[322659924,1713193834538,-195.317385,0.00020274,2]
[322659925,1713193834546,-503.0,0.00020274,2]
[322659926,1713193834556,-24349.50660926,0.00020278,2]
[322659937,1713193838352,-1856.50920775,0.00020278,2]
[322659938,1713193838361,-150.1048392,0.00020284,2]
[322659939,1713193838371,-150.1048392,0.00020318,2]
[322659940,1713193838380,-98.14698023,0.0002035,2]
[322659941,1713193838391,-201.85301977,0.0002035,2]
[322659942,1713193838401,-150.1048392,0.00020352,2]
[322659943,1713193838410,-26206.01581701,0.00020356,2]
[322659944,1713193838419,-1475.41314869,0.00020373,2]
[322659945,1713193838429,-150.1048392,0.00020386,2]
[322659946,1713193838439,-7500.0,0.00020411,2]
[322659947,1713193838448,-150.1048392,0.00020421,2]
[322659948,1713193838457,-26206.01581701,0.00020434,2]
[322659949,1713193838467,-150.1048392,0.00020455,2]
[322659950,1713193838476,-150.1048392,0.00020489,2]
[322659951,1713193838486,-150.0,0.00020493,2]
[322659952,1713193838495,-150.0,0.00020493,2]
[322659953,1713193838504,-150.0,0.00020493,2]
[322659954,1713193838513,-150.0,0.00020493,2]
[322659955,1713193838523,-300.0,0.00020493,2]
[322659956,1713193838533,-1165.17800154,0.000205,2]
[322659957,1713193838559,-781.908015,0.000205,2]
[322659958,1713193838579,-1009.75892915,0.000205,2]
[322659959,1713193838591,-9632.61228926,0.000205,2]
[322659960,1713193838601,-3692.014,0.000205,2]
[322659961,1713193838611,-1413.455,0.000205,2]
[322659963,1713193838620,-150.0,0.000205,2]
[322659965,1713193838629,-1253.0,0.000205,2]
[322659967,1713193838638,-541.0,0.000205,2]
[322659969,1713193838647,-1228.0,0.000205,2]
[322659971,1713193838657,-806.0,0.000205,2]
[322659972,1713193838666,-280.0,0.000205,2]
[322659973,1713193838675,-436.0,0.000205,2]
[322659974,1713193838684,-608.0,0.000205,2]
[322659975,1713193838693,-1949.0,0.000205,2]
[322659976,1713193838702,-399.0,0.000205,2]
[322659977,1713193838711,-1472.0,0.000205,2]
[322659978,1713193838720,-1140.0,0.000205,2]
[322659979,1713193838731,-211.39,0.000205,2]
[322659980,1713193838741,-3077.0,0.000205,2]
[322659981,1713193838751,-2441.0,0.000205,2]
[322659982,1713193838762,-152.166,0.000205,2]
[322659983,1713193838772,-1638.0,0.000205,2]
[322659984,1713193838781,-214.0,0.000205,2]
[322659985,1713193838790,-443.0,0.000205,2]
[322659986,1713193838800,-355.0,0.000205,2]
[322659988,1713193838809,-150.0,0.000205,2]
[322659990,1713193838819,-5721.0,0.000205,2]
[322659992,1713193838828,-5885.0,0.000205,2]
[322659994,1713193838837,-37635.0,0.000205,2]
[322659996,1713193838853,-1815.415,0.000205,2]
[322659998,1713193838862,-26206.01581701,0.00020511,2]
[322660000,1713193838871,-150.1048392,0.00020523,2]
[322660002,1713193838881,-166.93,0.00020537,2]
[322660004,1713193838890,-150.1048392,0.00020558,2]
[322660006,1713193838899,-173.32986147,0.00020561,2]
[322660008,1713193838908,-3000.0,0.0002058,2]
[322660010,1713193838918,-26206.01581701,0.00020589,2]
[322660012,1713193838927,-723.82326146,0.0002059,2]
[322660014,1713193838936,-150.1048392,0.00020592,2]
[322660016,1713193838945,-150.27177794,0.000206,2]
[322660018,1713193838954,-415.30194439,0.000206,2]
[322660020,1713193838963,-415.30194439,0.000206,2]
[322660022,1713193838972,-415.30194439,0.000206,2]
[322660024,1713193838982,-1000.0,0.000206,2]
[322660026,1713193838991,-150.1048392,0.00020626,2]
[322660028,1713193839000,-723.82326142,0.00020643,2]
[322660031,1713193839010,-150.1048392,0.0002066,2]
[322660032,1713193839019,-26206.01581701,0.00020667,2]
[322660034,1713193839028,-150.2717779,0.00020675,2]
[322660036,1713193839037,-5159.1713,0.0002069,2]
[322660038,1713193839046,-4806.402,0.0002069,2]
[322660040,1713193839056,-150.1048392,0.00020695,2]
[322660043,1713193839065,-723.82326142,0.00020695,2]
[322660044,1713193839074,-1107.0,0.000207,2]
[322660047,1713193839084,-4847.0,0.000207,2]
[322660049,1713193839097,-1000.0,0.000207,2]
[322660051,1713193839107,-150.1048392,0.00020729,2]
[322660053,1713193839117,-151.33,0.0002073,2]
[322660055,1713193839126,-150.0,0.0002073,2]
[322660057,1713193839135,-3000.0,0.0002074,2]
[322660059,1713193839145,-26206.01581701,0.00020745,2]
[322660061,1713193839155,-723.82326142,0.00020748,2]
[322660063,1713193839164,-150.2717779,0.0002075,2]
[322660065,1713193839177,-161.74,0.00020757,2]
[322660067,1713193839186,-150.1048392,0.00020763,2]
[322660069,1713193839197,-8063.77528692,0.00020785,2]
[322660071,1713193839207,-155.0,0.00020787,2]
[322660073,1713193839219,-167.44635763,0.0002079,2]
[322660075,1713193839228,-25191.07217235,0.0002079,2]
[322660077,1713193839238,-150.1048392,0.00020797,2]
[322660079,1713193839247,-523.54461827,0.00020799,2]
[322660081,1713193839256,-523.5446182,0.00020799,2]
[322660083,1713193839267,-523.5446182,0.00020799,2]
[322660085,1713193839276,-523.5446182,0.00020799,2]
[322660087,1713193839285,-523.5446182,0.000208,2]
[322660089,1713193839294,-523.5446182,0.000208,2]
[322660092,1713193839304,-523.5446182,0.000208,2]
[322660093,1713193839315,-523.5446182,0.000208,2]
[322660096,1713193839325,-30000.0,0.000208,2]
[322660098,1713193839334,-723.82326142,0.000208,2]
[322660099,1713193839346,-186.9578757,0.000208,2]
[322660101,1713193839355,-1000.0,0.000208,2]
[322660104,1713193839366,-2883.70883618,0.000208,2]
[322660106,1713193839375,-2013.0,0.00020822,2]
[322660108,1713193839384,-26206.01581701,0.00020822,2]
[322660110,1713193839393,-150.2717779,0.00020825,2]
[322660111,1713193839403,-200.0,0.00020831,2]
[322660114,1713193839413,-1000.0,0.00020831,2]
[322660115,1713193839422,-200.0,0.00020831,2]
[322660118,1713193839431,-500.0,0.00020831,2]
[322660119,1713193839441,-200.0,0.00020831,2]
[322660122,1713193839450,-500.0,0.00020832,2]
[322660124,1713193839460,-150.1048392,0.00020832,2]
[322660126,1713193839469,-200.0,0.00020832,2]
[322660128,1713193839478,-1000.0,0.00020832,2]
[322660130,1713193839487,-1000.0,0.00020832,2]
[322660132,1713193839496,-200.0,0.00020832,2]
[322660134,1713193839506,-500.0,0.00020832,2]
[322660136,1713193839515,-500.0,0.00020832,2]
[322660138,1713193839524,-200.0,0.00020832,2]
[322660140,1713193839533,-186.9578757,0.00020833,2]
[322660142,1713193839543,-150.1048392,0.00020866,2]
[322660144,1713193839552,-186.9578757,0.00020867,2]
[322660146,1713193839561,-5300.0,0.0002088,5]
[322660148,1713193839570,-173.32986147,0.00020886,2]
[322660150,1713193839580,-178.95293445,0.00020886,2]
[322660152,1713193839589,-785.25175788,0.00020895,4]
[322660154,1713193839602,-644.2413,0.00020895,2]
[322660156,1713193839611,-441097.86696084,0.00020895,2]
[322660330,1713193841320,-956.92805385,0.00020895,2]
[322660331,1713193841336,-7943.72803122,0.00020895,2]
[322660332,1713193841350,-433.05379998,0.00020895,2]
[322660333,1713193841361,-621.8,0.00020895,2]
[322660335,1713193841396,-12845.0,0.00020895,2]
[322660339,1713193841430,-175171.27760572,0.00020895,2]
[322660343,1713193841454,-64498.50003752,0.00020895,2]
[322660346,1713193841465,-13720.81461605,0.00020895,2]
[322660443,1713193842373,-522.0,0.00019233,2]
[322660445,1713193842383,-11633.1,0.00020895,2]
[322660448,1713193842394,-6414.3,0.00020895,2]
[322660450,1713193842406,-2285.37973528,0.00020895,2]
[322660452,1713193842418,-642.22188,0.00020895,2]
[322660454,1713193842431,-16868.4291391,0.00020895,2]
[322660458,1713193842462,-2219.94587709,0.00020895,2]
[322660462,1713193842484,-280.04231695,0.00020895,2]
[322660468,1713193842538,-782.76520705,0.000205,2]
[322660470,1713193842550,-271.23479295,0.000205,2]
[322660472,1713193842560,-308.24945325,0.00020895,2]
[322660474,1713193842571,-2894.0,0.00020895,2]
[322660478,1713193842606,-3359.99904972,0.00020895,2]
[322660694,1713193844383,-880.0,0.00020251,2]
[322660696,1713193844392,-1265.82230233,0.00020895,2]
[322660697,1713193844403,-3922.52259845,0.00020895,2]
[322660698,1713193844453,-432.06674985,0.00020895,2]
[322660699,1713193844464,-363.40105441,0.00020895,2]
[322660700,1713193844504,-1281.00000015,0.00020895,2]
[322660701,1713193844515,-1526.5347784,0.00020895,2]
[322660702,1713193844526,-5624.89469309,0.00020895,2]
[322660703,1713193844538,-402.41279949,0.00020895,2]
[322660704,1713193844550,-17681.85181672,0.00020895,2]
[322660707,1713193844573,-288.00000022,0.00020895,2]
[322660734,1713193846330,-1074.94954456,0.00020894,2]
[322660735,1713193846340,-517.82545544,0.00020895,2]
[322660736,1713193846391,-2780.81649436,0.00020895,2]
[322660737,1713193846424,-10223.1,0.00020895,2]
[322660738,1713193846435,-4272.6,0.00020895,2]
[322660739,1713193846541,-261.70799601,0.0002,2]